fUST/lending_fUST_20260404
["ID","MTS","AMOUNT","RATE_DAILY","PERIOD"]
[419697474,1775309442329,-871.439273,0.00025344,2]
[419697475,1775309442339,-871.439273,0.00025344,2]
[419697476,1775309442348,-871.439273,0.00025344,2]
[419697477,1775309442358,-2500.0,0.00025352,2]
[419697478,1775309442367,-253.333205,0.000254,10]
[419697479,1775309442376,-6500.0,0.00025422,2]
[419697480,1775309442386,-970348.58553287,0.00025444,2]
[419697501,1775309446645,-1000.0,0.00019178,7]
[419697502,1775309446655,-1000.0,0.00019178,7]
[419697503,1775309446664,-1000.0,0.00019178,7]
[419697504,1775309446674,-1000.0,0.00019178,7]
[419697505,1775309446684,-1000.0,0.00019178,7]
[419697506,1775309446693,-1000.0,0.00019178,7]
[419697507,1775309446704,-1000.0,0.00019178,7]
[419697508,1775309446713,-262.08209267,0.00019178,7]
[419697509,1775309537992,-1196.9264232,0.00018986,2]
[419697510,1775309548223,500.0,0.00034906,120]
[419697516,1775309845760,500.0,0.00034906,120]
[419697518,1775310145541,443.0,0.00034946,120]
[419697540,1775310632512,-253.08869634,0.00013699,2]
[419697546,1775310633568,-528.55735956,0.00013699,2]
[419697557,1775310638663,-218.3539441,0.00013699,2]
[419697558,1775310638674,-615.0,0.00013699,2]
[419697559,1775310638685,-1429.78280803,0.00018904,2]
[419697560,1775310638719,-583.94719197,0.00018904,2]
[419697561,1775310638729,-252.77702052,0.00019165,2]
[419697562,1775310638740,-151.0,0.00019165,2]
[419697563,1775310638751,-151.0,0.00019165,2]
[419697564,1775310638760,-151.0,0.00019165,2]
[419697565,1775310638770,-151.0,0.00019165,2]
[419697566,1775310638780,-151.0,0.00019165,2]
[419697567,1775310638789,-151.0,0.00019165,2]
[419697568,1775310638799,-151.0,0.00019165,2]
[419697569,1775310638809,-151.0,0.00019165,2]
[419697570,1775310638818,-151.0,0.00019165,2]
[419697571,1775310638828,-151.0,0.00019165,2]
[419697572,1775310638837,-151.0,0.00019165,2]
[419697573,1775310638847,-151.0,0.00019165,2]
[419697574,1775310638856,-151.0,0.00019165,2]
[419697575,1775310638867,-151.0,0.00019165,2]
[419697576,1775310638877,-151.0,0.00019165,2]
[419697577,1775310638887,-151.0,0.00019165,2]
[419697578,1775310638896,-151.0,0.00019165,2]
[419697579,1775310638906,-151.0,0.00019165,2]
[419697580,1775310638915,-151.0,0.00019165,2]
[419697581,1775310638925,-162.18590013,0.00019165,2]
[419697582,1775310638934,-1500.0,0.00019165,2]
[419697583,1775310638943,-990.14579013,0.00019177,2]
[419697584,1775310638955,-1023.58420987,0.00019177,2]
[419697585,1775310638964,-2013.73,0.00019177,2]
[419697586,1775310638974,-1000.0,0.00019178,2]
[419697587,1775310638983,-1000.0,0.00019178,2]
[419697588,1775310638993,-1555.5,0.0001922,2]
[419697589,1775310639002,-1613.0535,0.00019275,2]
[419697590,1775310639012,-1672.7364795,0.0001933,2]
[419697591,1775310639021,-1734.62772924,0.00019385,2]
[419697592,1775310639031,-1798.80895522,0.0001944,2]
[419697593,1775310639041,-2013.73,0.00019485,2]
[419697594,1775310639051,-1865.36488657,0.00019495,2]
[419697595,1775310639060,-1934.38338737,0.0001955,2]
[419697596,1775310639069,-1475.40122618,0.00019561,2]
[419697597,1775310639081,-2005.9555727,0.00019605,2]
[419697598,1775310639094,-2013.73,0.0001966,2]
[419697599,1775310639107,-874.3284024,0.0001966,2]
[419697600,1775310639120,-2013.73,0.00019663,2]
[419697601,1775310639133,-2013.73,0.00019663,2]
[419697602,1775310639146,-2013.73,0.00020243,2]
[419697603,1775310639157,-2013.73,0.00020548,2]
[419697604,1775310639167,-1475.40122611,0.00020673,2]
[419697605,1775310639177,-500.0,0.00020673,2]
[419697606,1775310639191,-500.0,0.00020947,2]
[419697607,1775310639202,-2013.73,0.00021129,2]
[419697608,1775310639214,-500.0,0.00021221,2]
[419697609,1775310639226,-500.0,0.00021296,2]
[419697610,1775310639239,-500.0,0.00021296,2]
[419697611,1775310639251,-510.36625122,0.00021296,2]
[419697612,1775310639264,-500.0,0.00021296,2]
[419697613,1775310639276,-500.0,0.00021296,2]
[419697614,1775310639288,-209.714078,0.00021296,2]
[419697615,1775310639302,-500.0,0.00021296,2]
[419697616,1775310639314,-500.0,0.00021296,2]
[419697617,1775310639328,-602.94997769,0.00021296,2]
[419697618,1775310639340,-500.0,0.00021296,2]
[419697619,1775310639351,-500.0,0.00021296,2]
[419697620,1775310639363,-217.08060554,0.00021296,2]
[419697621,1775310639377,-500.0,0.00021296,2]
[419697622,1775310639389,-158.32242609,0.00021296,2]
[419697623,1775310639401,-500.0,0.00021296,2]
[419697624,1775310639413,-500.0,0.00021296,2]
[419697625,1775310639423,-500.0,0.00021296,2]
[419697626,1775310639435,-500.0,0.00021296,2]
[419697627,1775310639447,-606.46611025,0.00021296,2]
[419697628,1775310639459,-433.32822834,0.00021296,2]
[419697629,1775310639469,-500.0,0.00021296,2]
[419697630,1775310639482,-293.06433893,0.00021296,2]
[419697631,1775310639494,-305027.97045059,0.00021297,2]
[419697632,1775310639509,-2505.41777256,0.00021297,2]
[419697633,1775310639523,-1392466.61177685,0.00021297,2]
[419697634,1775310639534,-4980.46514175,0.00021324,2]
[419697635,1775310639546,-695.928402,0.00021354,2]
[419697636,1775310639559,-500.0,0.00021373,2]
[419697637,1775310639572,-227.57,0.00021388,3]
[419697638,1775310639584,-682.73,0.00021388,3]
[419697639,1775310639595,-186.59092026,0.00021397,2]
[419697640,1775310639608,-2013.73,0.00021398,2]
[419697641,1775310639619,-797037.00809183,0.00021398,2]
[419697642,1775310639632,-12414.99888557,0.00021398,2]
[419697643,1775310639645,-404.66135869,0.00021398,2]
[419697644,1775310639658,-6460.96896065,0.00021398,2]
[419697813,1775310647115,-1000.0,0.00019178,2]
[419697814,1775310647127,-1000.0,0.00019178,7]
[419697815,1775310647138,-1000.0,0.00019178,7]
[419697816,1775310647149,-737.91790733,0.00019178,7]
[419697817,1775310647159,-31573.81102433,0.00021398,2]
[419697822,1775310650667,-614.42788462,0.00021398,2]
[419697823,1775310650721,-2608.76156,0.00021398,2]
[419697829,1775311082907,165.624555,8.482e-05,2]
[419697847,1775311261516,-454.30417433,9.601e-05,2]
[419697848,1775311261547,-537.39165134,9.601e-05,2]
[419697849,1775311261560,-16.60834866,9.601e-05,2]
[419697850,1775311261570,-437.69582567,9.699e-05,2]
[419697851,1775311261586,-554.0,9.699e-05,2]
[419697853,1775311430222,9490.64,0.00034874,120]
[419697855,1775311642017,500.0,0.00034874,120]
[419697856,1775311642465,500.0,0.00034874,120]
[419697857,1775311642926,500.0,0.00034874,120]
[419697858,1775311643383,500.0,0.00034874,120]
[419697859,1775311643861,500.0,0.00034874,120]
[419697860,1775311644077,249.65,0.00034874,120]
[419697861,1775311644360,500.0,0.00034874,120]
[419697862,1775311644826,591.4313731,0.00034874,120]
[419697863,1775311647618,252.7543109,0.00034874,120]
[419697864,1775311651533,500.0,0.00034874,120]
[419697865,1775311652039,500.0,0.00034874,120]
[419697866,1775311652546,856.022275,0.00034874,120]
[419697867,1775311654945,500.0,0.00034874,120]
[419697868,1775311655439,500.0,0.00034874,120]
[419697869,1775311655919,904.401977,0.00034874,120]
[419697888,1775311837946,-165.624555,9.896e-05,2]
[419697889,1775311837955,-559.0,9.896e-05,2]
[419697890,1775311837965,-165.624555,0.0001131,2]
[419697891,1775311837974,-165.624555,0.00012723,2]
[419697892,1775311837985,-1000.0,0.00013699,2]
[419697893,1775311837994,-165.624555,0.00014137,2]
[419697894,1775311838004,-165.624555,0.00015551,2]
[419697895,1775311838013,-165.624555,0.00016964,2]
[419697896,1775311838022,-300.0,0.00019177,2]
[419697897,1775311838031,-1000.0,0.00019178,2]
[419697898,1775311838041,-1000.0,0.00019178,2]
[419697899,1775311838051,-1000.0,0.00019178,7]
[419697900,1775311838060,-1000.0,0.00019178,7]
[419697901,1775311838069,-327.62921391,0.00019178,7]
[419697902,1775311838078,-1101.93687355,0.00020978,2]
[419697903,1775311838087,-1585.20230881,0.00020978,2]
[419697904,1775311838097,-292.73341783,0.00020978,2]
[419697905,1775311838106,-421.11458555,0.00020978,2]
[419697906,1775311838115,-5146.82136169,0.00020998,2]
[419697907,1775311838124,-455.14,0.00021088,3]
[419697908,1775311838134,-500.0,0.00021097,2]
[419697909,1775311838143,-496.7998546,0.00021097,2]
[419697910,1775311838153,-500.0,0.00021097,2]
[419697911,1775311838162,-500.0,0.00021097,2]
[419697912,1775311838171,-622.06498438,0.00021097,2]
[419697913,1775311838181,-500.0,0.00021097,2]
[419697914,1775311838190,-607.25637586,0.00021097,2]
[419697915,1775311838200,-199.22937099,0.00021097,2]
[419697916,1775311838209,-200.0,0.00021097,2]
[419697917,1775311838218,-200.0,0.00021097,2]
[419697918,1775311838228,-156.6233,0.00021098,2]
[419697919,1775311838236,-1051741.67470332,0.00021098,2]
[419697920,1775311838248,-4869.65549784,0.00021098,2]
[419697921,1775311838259,-37979.69733479,0.00021098,2]
[419697985,1775311840628,-5730.6388292,0.00021098,2]
[419697986,1775311840639,-3461.55030855,0.00021098,2]
[419697996,1775311846244,-153.8154,0.00016964,2]
[419697997,1775311846254,-555.23812591,0.00016964,2]
[419698176,1775311939457,500.0,0.00034874,120]
[419698177,1775311939925,500.0,0.00034874,120]
[419698178,1775311940425,795.7156866,0.00034874,120]
[419698179,1775311946874,928.0111375,0.00034874,120]
[419698180,1775311950549,952.2009885,0.00034874,120]
[419698181,1775312089337,500.84,0.00032,120]
[419698182,1775312238571,897.8578433,0.00034874,120]
[419698183,1775312248957,476.1004942,0.00034874,120]
[419698184,1775312249752,464.0055688,0.00034874,120]
[419698187,1775312510232,500.0,0.00034842,120]
[419698188,1775312510460,500.0,0.00034842,120]
[419698189,1775312510748,500.0,0.00034842,120]
[419698190,1775312510985,500.0,0.00034842,120]
[419698191,1775312511206,500.0,0.00034842,120]
[419698192,1775312511434,500.0,0.00034842,120]
[419698193,1775312511919,500.0,0.00034842,120]
[419698194,1775312512039,500.0,0.00034842,120]
[419698195,1775312512338,500.0,0.00034842,120]
[419698196,1775312512580,220.021552,0.00034842,120]
[419698197,1775312542733,232.0027844,0.00034842,120]
[419698198,1775312548617,238.0502471,0.00034842,120]
[419698199,1775312672432,284.2,9.002e-05,2]
[419698234,1775313031927,-728.1256811,0.00013194,2]
[419698236,1775313031939,-871.83819715,0.00013194,2]
[419698237,1775313031948,-607.0,0.00013194,2]
[419698238,1775313031958,-5000.0,0.00013327,2]
[419698239,1775313031968,-966.53880659,0.00013462,2]
[419698240,1775313031978,-300.0,0.00013593,2]
[419698241,1775313031987,-197.499,0.00013699,2]
[419698242,1775313031997,-1000.0,0.00013699,2]
[419698243,1775313032007,-561.95458031,0.00017986,2]
[419698244,1775313032017,-803.46340493,0.00018932,2]
[419698245,1775313032026,-1155.83031579,0.00018932,2]
[419698246,1775313032035,-371.18358792,0.00018932,2]
[419698247,1775313032045,-449.499998,0.00019,2]
[419698248,1775313032054,-88.16935754,0.00019178,2]
[419698262,1775313038016,-600.0,0.00019951,2]
[419698263,1775313038025,-6521.3077624,0.00019983,2]
[419698265,1775313038035,-15380.3736,0.00020097,2]
[419698267,1775313038044,-1200.42816128,0.00020589,2]
[419698269,1775313038054,-579.940335,0.00020689,2]
[419698270,1775313038063,-1131.1253664,0.000207,6]
[419698272,1775313038072,-3086.94984442,0.000207,6]
[419698274,1775313038081,-4632.13922553,0.000208,2]
[419698275,1775313038091,-184103.16830884,0.00020869,2]
[419698277,1775313038103,-10577.9862083,0.00020869,2]
[419698280,1775313038130,-988.23170697,0.00020869,2]
[419698464,1775313040688,-353.435,0.00019178,2]
[419698471,1775313040743,-646.565,0.00019178,2]
[419698473,1775313040752,-1711.16019592,0.00020869,2]
[419698574,1775313049289,-200.0,0.000139,2]
[419698575,1775313049299,-1000.0,0.00019178,7]
[419698576,1775313049309,-846.28352122,0.00019178,7]
[419698577,1775313049319,-5772.49275904,0.00020869,2]
[419698578,1775313049506,-1847.15173554,0.00020869,2]
[419698579,1775313049516,-421.657,0.0002087,2]
[419698580,1775313049524,-200.0,0.0002087,2]
[419698581,1775313049533,-86760.26672889,0.00020871,2]
[419698582,1775313049560,-4787.90033474,0.00020871,2]
[419698609,1775313106125,-202.04387307,0.000139,2]
[419698610,1775313106157,-618.0,0.000139,2]
[419698611,1775313152312,1041.87,0.00034842,120]
[419698612,1775313152540,1041.87,0.00034842,120]
[419698613,1775313152766,1041.87,0.00034842,120]
[419698614,1775313152992,1041.87,0.00034842,120]
[419698615,1775313153221,1041.87,0.00034842,120]
[419698616,1775313153436,1041.87,0.00034842,120]
[419698617,1775313153648,1041.87,0.00034842,120]
[419698618,1775313153875,1041.87,0.00034842,120]
[419698619,1775313154188,1041.87,0.00034842,120]
[419698620,1775313154418,1041.87,0.00034842,120]
[419698621,1775313154640,1041.87,0.00034842,120]
[419698622,1775313154865,1041.87,0.00034842,120]
[419698623,1775313155104,1041.87,0.00034842,120]
[419698624,1775313155326,1041.87,0.00034842,120]
[419698625,1775313155544,1041.87,0.00034842,120]
[419698626,1775313155887,1041.87,0.00034842,120]
[419698627,1775313155989,1041.87,0.00034842,120]
[419698628,1775313156216,1041.87,0.00034842,120]
[419698629,1775313156479,1041.87,0.00034842,120]
[419698630,1775313156711,1041.87,0.00034842,120]
[419698631,1775313156939,1041.87,0.00034842,120]
[419698632,1775313157185,1041.87,0.00034842,120]
[419698633,1775313157422,1041.87,0.00034842,120]
[419698634,1775313157737,1041.991,0.00034842,120]
[419698635,1775313506942,3311.83589192,0.00032877,120]
[419698636,1775313546299,1016.88,0.0003287,120]
[419698640,1775313634496,154.09579152,0.00032,120]
[419698641,1775313647007,1712.76,0.00034904,120]
[419698642,1775313647233,1712.76,0.00034904,120]
[419698643,1775313647481,1712.76,0.00034904,120]
[419698644,1775313647713,1712.76,0.00034904,120]
[419698645,1775313647932,1712.76,0.00034904,120]
[419698646,1775313648144,1712.76,0.00034904,120]
[419698647,1775313648374,1712.76,0.00034904,120]
[419698648,1775313648592,1712.76,0.00034904,120]
[419698649,1775313648808,1712.76,0.00034904,120]
[419698650,1775313649034,1712.76,0.00034904,120]
[419698651,1775313649273,1712.76,0.00034904,120]
[419698652,1775313649505,1712.76,0.00034904,120]
[419698653,1775313649728,1712.76,0.00034904,120]
[419698654,1775313649943,1712.76,0.00034904,120]
[419698655,1775313650184,1712.76,0.00034904,120]
[419698656,1775313650538,1712.76,0.00034904,120]
[419698657,1775313650758,1712.76,0.00034904,120]
[419698658,1775313650972,1712.76,0.00034904,120]
[419698659,1775313651189,1712.76,0.00034904,120]
[419698660,1775313651530,1712.76,0.00034904,120]
[419698661,1775313651772,1712.76,0.00034904,120]
[419698662,1775313651999,1712.76,0.00034904,120]
[419698663,1775313652246,1712.76,0.00034904,120]
[419698664,1775313652487,1712.986383,0.00034904,120]
[419698712,1775314232177,-1000.0,0.00013699,2]
[419698714,1775314232186,-166.66666666,0.00018715,2]
[419698716,1775314232195,-459.269322,0.00018815,2]
[419698717,1775314232205,-255.98263443,0.00018849,2]
[419698719,1775314232214,-1000.0,0.00019178,2]
[419698721,1775314232224,-846.28352122,0.00019178,7]
[419698723,1775314232233,-182.4216429,0.00019224,2]
[419698725,1775314232242,-232.0,0.00019767,2]
[419698727,1775314232252,-300.0,0.00019768,2]
[419698729,1775314232261,-300.0,0.00019768,2]
[419698731,1775314232270,-300.0,0.00019768,2]
[419698733,1775314232280,-300.0,0.00019768,2]
[419698735,1775314232288,-939.09693128,0.00019769,2]
[419698737,1775314232300,-5164.83696226,0.00019769,2]
[419698739,1775314232311,-1202.43828814,0.00019769,2]
[419698816,1775314238219,-3346.74071243,0.00019769,2]
[419698817,1775314238231,-24970.26504005,0.00019769,2]
[419698818,1775314238243,-5382.06751572,0.00019769,2]
[419698819,1775314238326,-22097.07238482,0.00019769,2]
[419698820,1775314238337,-10000.0,0.0001977,2]
[419698821,1775314238346,-251.88028728,0.00019831,2]
[419698822,1775314238356,-453.3845171,0.00019831,2]
[419698823,1775314238366,-806.01691928,0.00019831,2]
[419698824,1775314238375,-1259.40143638,0.00019831,2]
[419698825,1775314238385,-2976.5831369,0.00019891,2]
[419698826,1775314238395,-300.0,0.00020163,2]
[419698827,1775314238404,-300.0,0.00020163,2]
[419698828,1775314238414,-300.0,0.00020163,2]
[419698829,1775314238424,-191.26094908,0.00020231,2]
[419698830,1775314238433,-218.58394181,0.00020231,2]
[419698831,1775314238444,-341.53740907,0.00020231,2]
[419698832,1775314238453,-491.32205519,0.00020231,2]
[419698833,1775314238463,-8359.72228811,0.00020232,2]
[419698835,1775314238472,-1811.72453031,0.00020353,2]
[419698836,1775314238482,-641.55045175,0.00020668,2]
[419698837,1775314238491,-641.55045175,0.00020668,2]
[419698838,1775314238500,-641.55045175,0.00020668,2]
[419698839,1775314238510,-641.55045175,0.00020668,2]
[419698840,1775314238520,-641.55045175,0.00020668,2]
[419698841,1775314238529,-641.55045175,0.00020668,2]
[419698842,1775314238538,-641.55045175,0.00020668,2]
[419698843,1775314238548,-641.55045175,0.00020668,2]
[419698844,1775314238558,-200.0,0.00020669,2]
[419698845,1775314238567,-200.0,0.00020669,2]
[419698846,1775314238576,-541.415,0.00020669,2]
[419698847,1775314238586,-831.73,0.00020769,2]
[419698848,1775314238595,-831.73,0.00020769,2]
[419698849,1775314238605,-831.73,0.00020769,2]
[419698850,1775314238615,-831.73,0.00020769,2]
[419698851,1775314238624,-831.73,0.00020769,2]
[419698852,1775314238635,-831.73,0.00020769,2]
[419698853,1775314238645,-831.73,0.00020769,2]
[419698854,1775314238654,-831.73,0.00020769,2]
[419698855,1775314238663,-831.73,0.00020769,2]
[419698856,1775314238672,-831.73,0.00020769,2]
[419698857,1775314238682,-831.73,0.00020769,2]
[419698858,1775314238692,-831.73,0.00020769,2]
[419698859,1775314238701,-1321.75,0.00020769,2]
[419698860,1775314238711,-500.15034045,0.00020773,2]
[419698861,1775314238720,-500.0,0.00020773,2]
[419698862,1775314238730,-500.85836146,0.00020773,2]
[419698863,1775314238740,-500.83658278,0.00020773,2]
[419698864,1775314238751,-161.46251487,0.00020773,2]
[419698865,1775314238760,-500.15596197,0.00020773,2]
[419698866,1775314238770,-451.10291581,0.00020773,2]
[419698867,1775314238779,-500.0,0.00020773,2]
[419698868,1775314238789,-285.1835686,0.00020965,2]
[419698869,1775314238798,-500.0,0.00021,2]
[419698870,1775314238807,-8807.48144773,0.00021,2]
[419698871,1775314238817,-5120.39912084,0.000211,2]
[419698872,1775314238826,-906.1068542,0.000211,9]
[419698873,1775314238836,-894.14959305,0.000211,9]
[419698874,1775314238845,-500.23170586,0.00021173,2]
[419698875,1775314238855,-500.93548926,0.00021173,2]
[419698876,1775314238864,-307.22992505,0.00021173,2]
[419698877,1775314238874,-500.0,0.00021173,2]
[419698878,1775314238884,-500.95495457,0.00021173,2]
[419698879,1775314238894,-500.0,0.00021173,2]
[419698880,1775314238903,-500.0,0.00021173,2]
[419698881,1775314238913,-500.0,0.00021173,2]
[419698882,1775314238922,-500.54244637,0.00021173,2]
[419698883,1775314238932,-500.0,0.00021199,2]
[419698884,1775314238941,-634.4221134,0.00021199,2]
[419698885,1775314238951,-500.0,0.00021199,2]
[419698886,1775314238960,-634.4221134,0.00021199,2]
[419698887,1775314238969,-475.0794631,0.00021199,2]
[419698888,1775314238979,-634.4221134,0.00021199,2]
[419698889,1775314238988,-634.4221134,0.00021199,2]
[419698890,1775314238998,-634.4221134,0.00021199,2]
[419698891,1775314239007,-634.4221134,0.00021199,2]
[419698892,1775314239017,-634.4221134,0.00021199,2]
[419698893,1775314239026,-634.4221134,0.00021199,2]
[419698894,1775314239036,-634.4221134,0.00021199,2]
[419698895,1775314239045,-634.4221134,0.00021199,2]
[419698896,1775314239055,-634.4221134,0.00021199,2]
[419698897,1775314239065,-634.4221134,0.00021199,2]
[419698898,1775314239075,-634.4221134,0.00021199,2]
[419698899,1775314239085,-634.4221134,0.00021199,2]
[419698900,1775314239094,-723.88275974,0.00021199,2]
[419698901,1775314239104,-723.88275974,0.00021199,2]
[419698902,1775314239114,-723.88275974,0.00021199,2]
[419698903,1775314239124,-723.88275974,0.00021199,2]
[419698904,1775314239133,-723.88275974,0.00021199,2]
[419698905,1775314239143,-723.88275974,0.00021199,2]
[419698906,1775314239154,-200.0,0.00021199,2]
[419698907,1775314239163,-200.0,0.00021199,2]
[419698908,1775314239173,-50000.0,0.000212,2]
[419698909,1775314239182,-658870.39340479,0.000212,2]
[419698910,1775314239206,-600.0,0.00021287,10]
[419698911,1775314239219,-206.47672417,0.00021296,2]
[419698912,1775314239230,-505.88758071,0.000215,2]
[419698913,1775314239240,-579.940335,0.0002156,2]
[419698914,1775314239250,-2013.73,0.00021599,2]
[419698915,1775314239261,-2013.73,0.00021599,2]
[419698916,1775314239271,-2013.73,0.00021599,2]
[419698917,1775314239281,-2013.73,0.00021599,2]
[419698918,1775314239291,-2013.73,0.00021599,2]
[419698919,1775314239301,-2013.73,0.00021599,2]
[419698920,1775314239311,-2013.73,0.00021599,2]
[419698921,1775314239322,-2013.73,0.00021599,2]
[419698922,1775314239332,-2013.73,0.00021599,2]
[419698923,1775314239342,-2013.73,0.00021599,2]
[419698924,1775314239352,-2013.73,0.00021599,2]
[419698925,1775314239362,-2013.73,0.00021599,2]
[419698926,1775314239372,-2013.82038789,0.00021599,2]
[419698927,1775314239382,-391.79830639,0.0002168,2]
[419698928,1775314239392,-578.20924308,0.0002168,2]
[419698929,1775314239402,-578.20924308,0.0002168,2]
[419698930,1775314239412,-500.0,0.0002168,2]
[419698931,1775314239599,-2312.83697232,0.0002168,2]
[419698932,1775314239609,-1000.0,0.00021721,2]
[419698933,1775314239619,-599.60298507,0.00021735,2]
[419698934,1775314239628,-621.78829552,0.0002179,2]
[419698935,1775314239638,-1096.77938773,0.00021837,2]
[419698936,1775314239648,-644.79446246,0.00021845,2]
[419698938,1775314239658,-668.65185757,0.000219,2]
[419698940,1775314239668,-151.0,0.00021918,2]
[419698942,1775314239677,-151.0,0.00021918,2]
[419698943,1775314239687,-151.0,0.00021918,2]
[419698944,1775314239696,-151.0,0.00021918,2]
[419698945,1775314239706,-151.0,0.00021918,2]
[419698946,1775314239716,-151.0,0.00021918,2]
[419698947,1775314239726,-151.0,0.00021918,2]
[419698948,1775314239735,-151.0,0.00021918,2]
[419698949,1775314239745,-151.0,0.00021918,2]
[419698950,1775314239755,-151.0,0.00021918,2]
[419698951,1775314239764,-151.0,0.00021918,2]
[419698952,1775314239774,-151.0,0.00021918,2]
[419698953,1775314239783,-151.0,0.00021918,2]
[419698954,1775314239793,-151.0,0.00021918,2]
[419698956,1775314239803,-151.0,0.00021918,2]
[419698957,1775314239812,-151.0,0.00021918,2]
[419698958,1775314239821,-151.0,0.00021918,2]
[419698959,1775314239831,-151.0,0.00021918,2]
[419698960,1775314239841,-151.0,0.00021918,2]
[419698961,1775314239851,-152.274758,0.00021918,2]
[419698962,1775314239861,-152.274758,0.00021918,2]
[419698963,1775314239870,-152.274758,0.00021918,2]
[419698964,1775314239880,-152.274758,0.00021918,2]
[419698965,1775314239889,-693.3919763,0.00021955,2]
[419698966,1775314239899,-500.0,0.00021973,2]
[419698967,1775314239908,-500.52952935,0.00021973,2]
[419698968,1775314239917,-500.0,0.00021973,2]
[419698969,1775314239926,-500.0,0.00021973,2]
[419698970,1775314239936,-500.0,0.00021973,2]
[419698971,1775314239946,-500.20544255,0.00021973,2]
[419698972,1775314239956,-594.68313738,0.00021973,2]
[419698974,1775314239965,-500.0,0.00021973,2]
[419698975,1775314239975,-571.72902749,0.00021973,2]
[419698976,1775314239984,-501.30607833,0.00021973,2]
[419698977,1775314239994,-501.18632935,0.00021973,2]
[419698978,1775314240003,-502.97690304,0.00021973,2]
[419698980,1775314240013,-500.0,0.00021973,2]
[419698981,1775314240022,-500.4886949,0.00021973,2]
[419698983,1775314240032,-500.0,0.00021973,2]
[419698985,1775314240042,-501.0052031,0.00021973,2]
[419698986,1775314240051,-159.39152282,0.00021973,2]
[419698987,1775314240060,-500.17839644,0.00021973,2]
[419698988,1775314240070,-500.75327758,0.00021973,2]
[419698989,1775314240080,-500.64971944,0.00021973,2]
[419698990,1775314240089,-500.28371403,0.00021973,2]
[419698991,1775314240098,-161.41062146,0.00021973,2]
[419698992,1775314240108,-500.49070775,0.00021973,2]
[419698993,1775314240118,-500.0,0.00021973,2]
[419698994,1775314240127,-501.28591374,0.00021973,2]
[419698995,1775314240137,-166.87459738,0.00021973,2]
[419698996,1775314240146,-500.0,0.00021973,2]
[419698997,1775314240155,-500.43600567,0.00021973,2]
[419698998,1775314240164,-503.44478132,0.00021973,2]
[419698999,1775314240174,-500.0,0.00021973,2]
[419699000,1775314240183,-499.10778354,0.00021973,2]
[419699001,1775314240192,-540.7583172,0.00021973,2]
[419699002,1775314240202,-500.57657667,0.00021973,2]
[419699003,1775314240212,-160.14068941,0.00021973,2]
[419699004,1775314240221,-161.13063003,0.00021973,2]
[419699005,1775314240230,-501.18354696,0.00021973,2]
[419699006,1775314240239,-165.46509283,0.00021973,2]
[419699007,1775314240248,-501.40563185,0.00021973,2]
[419699008,1775314240257,-245.6759643,0.00021973,2]
[419699009,1775314240267,-501.2801591,0.00021973,2]
[419699010,1775314240276,-500.73190288,0.00021973,2]
[419699011,1775314240286,-500.35698121,0.00021973,2]
[419699012,1775314240295,-500.82397057,0.00021973,2]
[419699013,1775314240304,-500.0,0.00021973,2]
[419699014,1775314240313,-501.30336184,0.00021973,2]
[419699015,1775314240323,-501.32137978,0.00021973,2]
[419699016,1775314240333,-501.85887989,0.00021973,2]
[419699017,1775314240342,-500.26522371,0.00021973,2]
[419699018,1775314240351,-161.9088738,0.00021973,2]
[419699019,1775314240360,-501.11793235,0.00021973,2]
[419699020,1775314240370,-500.0,0.00021973,2]
[419699021,1775314240379,-500.93644976,0.00021973,2]